fUST/lending_fUST_20260507
["ID","MTS","AMOUNT","RATE_DAILY","PERIOD"]
[421780595,1778143832000,-258.97477672,8.278e-05,2]
[421780618,1778143838000,-500.0,0.00010958,2]
[421780627,1778143838000,-500.0,0.00010958,2]
[421780624,1778143838000,-788.86,0.00010958,2]
[421780623,1778143838000,-721.61,0.00010958,2]
[421780621,1778143838000,-500.0,0.00010958,2]
[421780620,1778143838000,-500.0,0.00010958,2]
[421780619,1778143838000,-500.0,0.00010958,2]
[421780617,1778143838000,-152.0,0.00010958,2]
[421780615,1778143838000,-325.7282483,0.00010902,2]
[421780610,1778143838000,-250.93973679,0.00010789,2]
[421780611,1778143838000,-300.0,0.00010901,2]
[421780612,1778143838000,-1200.0,0.00010901,2]
[421780616,1778143838000,-456.3275978,0.00010902,2]
[421780613,1778143838000,-455.0937284,0.00010902,2]
[421780626,1778143838000,-500.0,0.00010958,2]
[421780608,1778143838000,-412.10808293,0.00010278,2]
[421780606,1778143838000,-325.7282482,0.00010059,2]
[421780607,1778143838000,-1981.81411312,0.00010203,2]
[421780614,1778143838000,-456.3009281,0.00010902,2]
[421780609,1778143838000,-152.0,0.0001064,7]
[421780622,1778143838000,-500.0,0.00010958,2]
[421780648,1778143838000,-949.0803494,0.00011121,2]
[421780650,1778143838000,-3116.48885065,0.00011136,2]
[421780649,1778143838000,-500.0,0.00011132,2]
[421780647,1778143838000,-500.0,0.00011029,2]
[421780629,1778143838000,-500.0,0.00010958,2]
[421780646,1778143838000,-185.76162497,0.00011029,2]
[421780643,1778143838000,-500.0,0.00011029,2]
[421780640,1778143838000,-500.0,0.00011029,2]
[421780635,1778143838000,-59.80705272,0.00011029,2]
[421780638,1778143838000,-788.88,0.00011029,2]
[421780641,1778143838000,-2450.19,0.00011029,2]
[421780625,1778143838000,-500.0,0.00010958,2]
[421780636,1778143838000,-346.05294728,0.00011029,2]
[421780637,1778143838000,-408.93,0.00011029,2]
[421780644,1778143838000,-500.0,0.00011029,2]
[421780645,1778143838000,-379.04837503,0.00011029,2]
[421780633,1778143838000,-500.0,0.00010958,2]
[421780634,1778143838000,-161.47310989,0.00011,2]
[421780632,1778143838000,-500.0,0.00010958,2]
[421780630,1778143838000,-500.0,0.00010958,2]
[421780628,1778143838000,-597.19,0.00010958,2]
[421780631,1778143838000,-500.0,0.00010958,2]
[421780639,1778143838000,-500.0,0.00011029,2]
[421780675,1778143843000,-944.85128539,0.00011136,2]
[421780745,1778143846000,-4300.62647664,0.00011136,2]
[421780746,1778143846000,-5820.58259953,0.00011136,2]
[421780748,1778143846000,-160.0,0.000112,2]
[421780751,1778143846000,-500.0,0.00011232,2]
[421780750,1778143846000,-537.6845,0.00011229,2]
[421780747,1778143846000,-448.9553229,0.00011168,2]
[421780752,1778143846000,-313.05432372,0.00011232,2]
[421780749,1778143846000,-264.26510823,0.00011229,2]
[421780753,1778143890000,200.0,0.00018952,120]
[421780760,1778143933000,165.023544,7.265e-05,2]
[421780759,1778143933000,165.023544,6.746e-05,2]
[421780758,1778143933000,165.023544,6.227e-05,2]
[421780757,1778143933000,165.023544,5.708e-05,2]
[421780756,1778143933000,165.023544,5.189e-05,2]
[421780761,1778143934000,165.023544,7.784e-05,2]
[421780764,1778144071000,200.0,0.00017982,120]
[421780765,1778144087000,164.47919402,8.16e-05,2]
[421780768,1778144195000,500.0,8e-05,2]
[421780770,1778144310000,200.0,0.00017307,120]
[421780775,1778144435000,-500.0,8.29e-05,2]
[421780776,1778144452000,-500.0,8.29e-05,2]
[421780777,1778144468000,-500.0,8.29e-05,2]
[421780778,1778144486000,-500.0,8.29e-05,2]
[421780779,1778144502000,-351.57192964,8.295e-05,2]
[421780780,1778144519000,-500.0,8.3e-05,2]
[421780781,1778144536000,-165.023544,8.303e-05,2]
[421780782,1778144552000,-165.023544,8.822e-05,2]
[421780785,1778144694000,660.8,0.00019178,120]
[421780786,1778144725000,9027.04552284,7.6e-05,2]
[421780787,1778144747000,176.906019,4.918e-05,2]
[421780788,1778144750000,881.1,0.00019178,120]
[421780789,1778144781000,881.1,0.00019178,120]
[421780792,1778144805000,440.6,0.00019178,120]
[421780801,1778145032000,-344.54049105,9.085e-05,2]
[421780800,1778145032000,-500.0,9e-05,2]
[421780802,1778145032000,-54.48316062,9.341e-05,2]
[421780809,1778145038000,-176.906019,9.836e-05,2]
[421780808,1778145038000,-110.54038338,9.341e-05,2]
[421780811,1778145038000,-500.0,9.9e-05,2]
[421780812,1778145038000,-165.023544,0.00010379,2]
[421780810,1778145038000,-165.023544,9.86e-05,2]
[421780814,1778145038000,-1200.0,0.0001098,2]
[421780815,1778145038000,-5317.6550205,0.00010981,2]
[421780818,1778145038000,-500.0,0.00011129,2]
[421780816,1778145038000,-448.9553229,0.0001103,2]
[421780817,1778145038000,-406.55777944,0.00011085,2]
[421780822,1778145038000,-500.0,0.0001113,2]
[421780813,1778145038000,-500.0,0.000105,2]
[421780821,1778145038000,-500.0,0.00011129,2]
[421780823,1778145038000,-500.0,0.0001113,2]
[421780824,1778145038000,-500.0,0.0001113,2]
[421780820,1778145038000,-500.0,0.00011129,2]
[421780826,1778145038000,-500.0,0.0001113,2]
[421780825,1778145038000,-500.0,0.0001113,2]
[421780828,1778145038000,-756.01,0.0001113,2]
[421780827,1778145038000,-538.75835585,0.0001113,2]
[421780829,1778145038000,-500.0,0.0001113,2]
[421780831,1778145038000,-314.70743293,0.0001113,2]
[421780830,1778145038000,-500.0,0.0001113,2]
[421780819,1778145038000,-500.0,0.00011129,2]
[421780842,1778145041000,-755.99,0.0001113,2]
[421780838,1778145041000,-541.28,0.0001113,2]
[421780839,1778145041000,-500.0,0.0001113,2]
[421780837,1778145041000,-500.0,0.0001113,2]
[421780832,1778145041000,-185.29256707,0.0001113,2]
[421780835,1778145041000,-500.0,0.0001113,2]
[421780834,1778145041000,-572.31,0.0001113,2]
[421780833,1778145041000,-2348.1,0.0001113,2]
[421780841,1778145041000,-691.54,0.0001113,2]
[421780836,1778145041000,-500.0,0.0001113,2]
[421780840,1778145041000,-500.0,0.0001113,2]
[421780847,1778145041000,-300.0,0.00011249,2]
[421780843,1778145041000,-264.26510823,0.00011196,2]
[421780846,1778145041000,-300.0,0.00011249,2]
[421780845,1778145041000,-160.0,0.000112,2]
[421780848,1778145041000,-300.0,0.00011249,2]
[421780849,1778145041000,-300.0,0.00011249,2]
[421780850,1778145041000,-300.0,0.00011249,2]
[421780851,1778145041000,-300.0,0.00011249,2]
[421780852,1778145041000,-300.0,0.00011249,2]
[421780854,1778145041000,-300.0,0.00011249,2]
[421780855,1778145041000,-300.0,0.00011249,2]
[421780853,1778145041000,-300.0,0.00011249,2]
[421780844,1778145041000,-537.6845,0.00011196,2]
[421780858,1778145042000,-300.0,0.00011249,2]
[421780857,1778145042000,-300.0,0.00011249,2]
[421780859,1778145042000,-300.0,0.00011249,2]
[421780860,1778145042000,-300.0,0.00011249,2]
[421780856,1778145042000,-300.0,0.00011249,2]
[421780868,1778145042000,-1525.57541363,0.00011305,2]
[421780871,1778145042000,-841.52588397,0.00011305,2]
[421780863,1778145042000,-9356.97850735,0.00011305,2]
[421780861,1778145042000,-500.0,0.00011304,2]
[421780862,1778145042000,-573.10940896,0.00011304,2]
[421780864,1778145042000,-6855.87471478,0.00011305,2]
[421780885,1778145043000,-617.46398293,0.00011305,2]
[421780884,1778145043000,-1806.14853391,0.00011305,2]
[421780883,1778145043000,-500.0,0.0001113,2]
[421780888,1778145044000,-453.0,0.00011305,2]
[421780886,1778145044000,-652.25,0.00011305,2]
[421780887,1778145044000,-10342.34652909,0.00011305,2]
[421780894,1778145046000,-15336.04182989,0.00011305,2]
[421780896,1778145047000,-9842.51554642,0.00011305,2]
[421780895,1778145047000,-984.7182516,0.00011305,2]
[421780934,1778145164000,3178.01,0.00019178,120]
[421780935,1778145182000,151.0,0.0001,10]
[421780961,1778146016000,5000.0,8.16e-05,2]
[421780964,1778146028000,152.0,0.00010801,30]
[421780968,1778146038000,5000.0,8.16e-05,2]
[421780970,1778146060000,4214.91285963,8.16e-05,2]
[421780971,1778146066000,152.0,0.00010328,30]
[421780973,1778146192000,5000.0,8.16e-05,2]
[421780974,1778146200000,5000.0,8.16e-05,2]
[421780975,1778146223000,744.27060543,8.16e-05,2]
[421781053,1778146233000,-300.0,8.817e-05,2]
[421781067,1778146233000,-300.0,8.817e-05,2]
[421781069,1778146233000,-300.0,8.817e-05,2]
[421781063,1778146233000,-300.0,8.817e-05,2]
[421781065,1778146233000,-300.0,8.817e-05,2]
[421781051,1778146233000,-300.0,8.817e-05,2]
[421781039,1778146233000,-833.26321681,8.263e-05,2]
[421781049,1778146233000,-300.0,8.817e-05,2]
[421781047,1778146233000,-300.0,8.817e-05,2]
[421781041,1778146233000,-74.8032329,8.346e-05,2]
[421781037,1778146233000,-2795.67514338,8.263e-05,2]
[421781043,1778146233000,-271.92846808,8.346e-05,2]
[421781057,1778146233000,-300.0,8.817e-05,2]
[421781045,1778146233000,-300.0,8.816e-05,2]
[421781059,1778146233000,-300.0,8.817e-05,2]
[421781077,1778146233000,-420.0,9.698e-05,2]
[421781061,1778146233000,-300.0,8.817e-05,2]
[421781089,1778146233000,-500.0,0.00011127,2]
[421781085,1778146233000,-500.0,0.00011126,2]
[421781055,1778146233000,-300.0,8.817e-05,2]
[421781094,1778146233000,-500.0,0.00011127,2]
[421781095,1778146233000,-2250.26,0.00011127,2]
[421781083,1778146233000,-400.25365054,0.00011,2]
[421781080,1778146233000,-152.0,0.0001064,7]
[421781087,1778146233000,-724.51,0.00011127,2]
[421781091,1778146233000,-500.0,0.00011127,2]
[421781078,1778146233000,-409.14340716,0.00010346,2]
[421781073,1778146233000,-300.0,8.817e-05,2]
[421781075,1778146233000,-300.0,8.817e-05,2]
[421781071,1778146233000,-300.0,8.817e-05,2]
[421781082,1778146233000,-587.0,0.00010667,2]
[421781110,1778146234000,-500.0,0.00011127,2]
[421781106,1778146234000,-500.0,0.00011127,2]
[421781116,1778146234000,-500.0,0.00011128,2]
[421781115,1778146234000,-724.49,0.00011127,2]
[421781114,1778146234000,-500.0,0.00011127,2]
[421781113,1778146234000,-499.17328765,0.00011127,2]
[421781112,1778146234000,-662.73,0.00011127,2]
[421781104,1778146234000,-500.0,0.00011127,2]
[421781117,1778146234000,-500.0,0.00011128,2]
[421781108,1778146234000,-500.0,0.00011127,2]
[421781119,1778146234000,-500.0,0.00011128,2]
[421781102,1778146234000,-518.72,0.00011127,2]
[421781120,1778146234000,-500.0,0.00011128,2]
[421781125,1778146234000,-5644.29971992,0.00011137,2]
[421781123,1778146234000,-500.0,0.00011128,2]
[421781124,1778146234000,-325.0,0.00011135,2]
[421781121,1778146234000,-548.46,0.00011128,2]
[421781126,1778146234000,-2167.19413998,0.00011137,2]
[421781128,1778146234000,-544.43496968,0.00011137,2]
[421781127,1778146234000,-1006.81783792,0.00011137,2]
[421781122,1778146234000,-500.0,0.00011128,2]
[421781129,1778146234000,-931.67488791,0.00011137,2]
[421781130,1778146234000,-438.23496928,0.00011137,2]
[421781131,1778146234000,-2356.96132093,0.00011137,2]
[421781118,1778146234000,-500.0,0.00011128,2]
[421781144,1778146238000,-17749.11520079,0.00011137,2]
[421781141,1778146238000,-18322.46040367,0.00011137,2]
[421781147,1778146241000,-1236.39766523,0.00011137,2]
[421781173,1778146246000,-6292.2066766,0.00011137,2]
[421781174,1778146247000,-8812.57948287,0.00011137,2]
[421781179,1778146300000,167.2730693,5.069e-05,2]
[421781269,1778147432000,-837.26401928,0.0001029,2]
[421781264,1778147432000,-1083.47431635,0.0001,2]
[421781268,1778147432000,-325.99834823,0.00010073,2]
[421781265,1778147432000,-33.96087411,0.00010073,2]
[421781271,1778147432000,-713.49651263,0.0001029,2]
[421781275,1778147432000,-859.11990399,0.0001029,2]
[421781323,1778147438000,-2099.92236463,0.0001029,2]
[421781325,1778147438000,-1200.0,0.00010611,2]
[421781328,1778147438000,-300.0,0.00010612,2]
[421781331,1778147438000,-300.0,0.00010613,2]
[421781329,1778147438000,-300.0,0.00010612,2]
[421781334,1778147438000,-9203.50531819,0.00010766,2]
[421781332,1778147438000,-8666.45966491,0.00010614,2]
[421781335,1778147438000,-35384.66531306,0.00010766,2]
[421781333,1778147438000,-9285.96535002,0.00010759,2]
[421781330,1778147438000,-300.0,0.00010612,2]
[421781377,1778147439000,-295.88781655,0.00010958,2]
[421781375,1778147439000,-151.0,0.00010957,2]
[421781373,1778147439000,-500.0,0.00010954,2]
[421781376,1778147439000,-151.0,0.00010957,2]
[421781374,1778147439000,-500.0,0.00010954,2]
[421781369,1778147439000,-220.02184465,0.00010954,2]
[421781367,1778147439000,-500.0,0.00010954,2]
[421781368,1778147439000,-500.0,0.00010954,2]
[421781366,1778147439000,-500.0,0.00010954,2]
[421781365,1778147439000,-500.0,0.00010954,2]
[421781370,1778147439000,-500.0,0.00010954,2]
[421781372,1778147439000,-541.39467006,0.00010954,2]
[421781364,1778147439000,-500.0,0.00010954,2]
[421781371,1778147439000,-500.0,0.00010954,2]
[421781378,1778147439000,-151.0,0.00010958,2]
[421781380,1778147439000,-500.0,0.00010958,2]
[421781381,1778147439000,-500.0,0.00010958,2]
[421781385,1778147439000,-500.0,0.00010958,2]
[421781389,1778147439000,-500.0,0.00010958,2]
[421781390,1778147439000,-500.0,0.00010958,2]
[421781388,1778147439000,-500.0,0.00010958,2]
[421781386,1778147439000,-500.0,0.00010958,2]
[421781383,1778147439000,-500.0,0.00010958,2]
[421781392,1778147439000,-500.0,0.00010958,2]
[421781384,1778147439000,-500.0,0.00010958,2]
[421781379,1778147439000,-500.0,0.00010958,2]
[421781362,1778147439000,-500.0,0.00010954,2]
[421781345,1778147439000,-557.5788265,0.00010915,2]
[421781358,1778147439000,-500.0,0.00010954,2]
[421781341,1778147439000,-13086.71757633,0.00010866,2]
[421781336,1778147439000,-161.01232938,0.00010857,2]
[421781337,1778147439000,-537.6845,0.0001086,2]
[421781338,1778147439000,-2726.4690853,0.00010866,2]
[421781340,1778147439000,-908.8230284,0.00010866,2]
[421781339,1778147439000,-8714.8309785,0.00010866,2]
[421781342,1778147439000,-406.02790127,0.00010866,2]
[421781343,1778147439000,-151.0,0.00010866,2]
[421781344,1778147439000,-151.0,0.00010866,2]
[421781347,1778147439000,-220.64673228,0.00010954,2]
[421781346,1778147439000,-9059.16224456,0.00010939,2]
[421781348,1778147439000,-500.0,0.00010954,2]
[421781349,1778147439000,-500.0,0.00010954,2]
[421781351,1778147439000,-406.19452702,0.00010954,2]
[421781352,1778147439000,-500.0,0.00010954,2]
[421781350,1778147439000,-500.0,0.00010954,2]
[421781356,1778147439000,-500.0,0.00010954,2]
[421781354,1778147439000,-500.0,0.00010954,2]
[421781353,1778147439000,-185.58313279,0.00010954,2]
[421781382,1778147439000,-500.0,0.00010958,2]
[421781355,1778147439000,-500.0,0.00010954,2]
[421781357,1778147439000,-500.0,0.00010954,2]
[421781359,1778147439000,-500.0,0.00010954,2]
[421781360,1778147439000,-500.0,0.00010954,2]
[421781361,1778147439000,-500.0,0.00010954,2]
[421781363,1778147439000,-500.0,0.00010954,2]
[421781387,1778147439000,-502.46437991,0.00010958,2]
[421781429,1778147439000,-500.0,0.00010958,2]
[421781393,1778147439000,-500.0,0.00010958,2]
[421781424,1778147439000,-500.0,0.00010958,2]
[421781431,1778147439000,-507.92,0.00010958,2]
[421781430,1778147439000,-500.0,0.00010958,2]
[421781425,1778147439000,-500.0,0.00010958,2]
[421781422,1778147439000,-500.0,0.00010958,2]
[421781423,1778147439000,-500.0,0.00010958,2]
[421781426,1778147439000,-500.0,0.00010958,2]
[421781427,1778147439000,-500.0,0.00010958,2]
[421781432,1778147439000,-525.61,0.00010958,2]
[421781434,1778147439000,-122.68792157,0.00010958,2]
[421781435,1778147439000,-377.31207843,0.00010958,2]
[421781436,1778147439000,-500.0,0.00010958,2]
[421781440,1778147439000,-500.0,0.00010958,2]
[421781437,1778147439000,-500.0,0.00010958,2]
[421781438,1778147439000,-500.0,0.00010958,2]
[421781439,1778147439000,-500.0,0.00010958,2]
[421781441,1778147439000,-500.0,0.00010958,2]
[421781442,1778147439000,-500.0,0.00010958,2]
[421781443,1778147439000,-500.0,0.00010958,2]
[421781444,1778147439000,-694.32,0.00010958,2]
[421781447,1778147439000,-396.06662937,0.00010958,2]
[421781445,1778147439000,-500.0,0.00010958,2]
[421781448,1778147439000,-500.0,0.00010958,2]
[421781446,1778147439000,-103.93337063,0.00010958,2]
[421781391,1778147439000,-500.0,0.00010958,2]
[421781428,1778147439000,-500.0,0.00010958,2]
[421781420,1778147439000,-500.0,0.00010958,2]
[421781433,1778147439000,-500.0,0.00010958,2]
[421781419,1778147439000,-500.0,0.00010958,2]
[421781394,1778147439000,-562.75,0.00010958,2]
[421781421,1778147439000,-500.0,0.00010958,2]
[421781398,1778147439000,-500.0,0.00010958,2]
[421781396,1778147439000,-500.0,0.00010958,2]
[421781397,1778147439000,-634.84,0.00010958,2]
[421781402,1778147439000,-500.0,0.00010958,2]
[421781399,1778147439000,-500.0,0.00010958,2]
[421781404,1778147439000,-500.0,0.00010958,2]
[421781400,1778147439000,-500.0,0.00010958,2]
[421781405,1778147439000,-551.11,0.00010958,2]
[421781403,1778147439000,-500.0,0.00010958,2]
[421781395,1778147439000,-500.0,0.00010958,2]
[421781406,1778147439000,-500.0,0.00010958,2]
[421781401,1778147439000,-500.0,0.00010958,2]
[421781414,1778147439000,-500.0,0.00010958,2]
[421781415,1778147439000,-500.0,0.00010958,2]
[421781407,1778147439000,-611.31,0.00010958,2]
[421781413,1778147439000,-500.0,0.00010958,2]
[421781417,1778147439000,-500.0,0.00010958,2]
[421781418,1778147439000,-500.0,0.00010958,2]
[421781416,1778147439000,-176.04865274,0.00010958,2]
[421781409,1778147439000,-500.0,0.00010958,2]
[421781412,1778147439000,-500.0,0.00010958,2]
[421781411,1778147439000,-500.0,0.00010958,2]
[421781410,1778147439000,-500.0,0.00010958,2]
[421781408,1778147439000,-500.0,0.00010958,2]
[421781484,1778147440000,-500.0,0.00010958,2]
[421781495,1778147440000,-694.3,0.00010958,2]
[421781492,1778147440000,-500.0,0.00010958,2]
[421781485,1778147440000,-500.0,0.00010958,2]
[421781486,1778147440000,-500.0,0.00010958,2]
[421781476,1778147440000,-500.0,0.00010958,2]
[421781483,1778147440000,-500.0,0.00010958,2]
[421781482,1778147440000,-500.0,0.00010958,2]
[421781480,1778147440000,-500.0,0.00010958,2]
[421781493,1778147440000,-642.76,0.00010958,2]
[421781491,1778147440000,-635.11,0.00010958,2]
[421781494,1778147440000,-500.0,0.00010958,2]
[421781508,1778147440000,-445.202766,0.00011119,2]
[421781488,1778147440000,-500.0,0.00010958,2]
[421781489,1778147440000,-500.0,0.00010958,2]
[421781490,1778147440000,-500.0,0.00010958,2]
[421781496,1778147440000,-500.0,0.00010958,2]
[421781497,1778147440000,-500.0,0.00010958,2]
[421781507,1778147440000,-501.72392286,0.00011108,2]
[421781499,1778147440000,-500.0,0.00010958,2]
[421781501,1778147440000,-325.4720939,0.00010978,2]
[421781498,1778147440000,-500.0,0.00010958,2]
[421781500,1778147440000,-578.20924308,0.0001097,2]
[421781510,1778147440000,-537.6845,0.00011119,2]
[421781477,1778147440000,-500.0,0.00010958,2]
[421781487,1778147440000,-500.0,0.00010958,2]
[421781470,1778147440000,-500.0,0.00010958,2]
[421781450,1778147440000,-500.0,0.00010958,2]
[421781481,1778147440000,-500.0,0.00010958,2]
[421781449,1778147440000,-457.89072622,0.00010958,2]
[421781503,1778147440000,-599.60298507,0.00011025,2]
[421781451,1778147440000,-478.90321676,0.00010958,2]
[421781452,1778147440000,-500.0,0.00010958,2]
[421781454,1778147440000,-2156.5,0.00010958,2]
[421781453,1778147440000,-500.0,0.00010958,2]
[421781455,1778147440000,-500.0,0.00010958,2]
[421781462,1778147440000,-508.71021993,0.00010958,2]
[421781461,1778147440000,-500.0,0.00010958,2]
[421781463,1778147440000,-583.90980718,0.00010958,2]
[421781464,1778147440000,-500.0,0.00010958,2]
[421781465,1778147440000,-500.0,0.00010958,2]
[421781466,1778147440000,-500.0,0.00010958,2]
[421781467,1778147440000,-500.0,0.00010958,2]
[421781468,1778147440000,-500.0,0.00010958,2]
[421781456,1778147440000,-500.0,0.00010958,2]
[421781457,1778147440000,-500.0,0.00010958,2]
[421781460,1778147440000,-500.0,0.00010958,2]
[421781458,1778147440000,-500.0,0.00010958,2]
[421781459,1778147440000,-500.0,0.00010958,2]
[421781475,1778147440000,-500.0,0.00010958,2]
[421781472,1778147440000,-500.0,0.00010958,2]
[421781473,1778147440000,-609.75,0.00010958,2]
[421781469,1778147440000,-500.0,0.00010958,2]
[421781471,1778147440000,-500.0,0.00010958,2]
[421781474,1778147440000,-500.0,0.00010958,2]
[421781478,1778147440000,-500.0,0.00010958,2]
[421781479,1778147440000,-580.91,0.00010958,2]
[421781504,1778147440000,-648.31,0.00011036,2]
[421781509,1778147440000,-162.380719,0.00011119,2]
[421781505,1778147440000,-594.2,0.00011036,2]
[421781543,1778147440000,-500.0,0.00011126,2]
[421781538,1778147440000,-500.0,0.00011126,2]
[421781545,1778147440000,-500.0,0.00011126,2]
[421781547,1778147440000,-500.0,0.00011126,2]
[421781550,1778147440000,-500.0,0.00011126,2]
[421781548,1778147440000,-500.0,0.00011126,2]
[421781564,1778147440000,-500.0,0.00011126,2]
[421781565,1778147440000,-549.23,0.00011126,2]
[421781563,1778147440000,-500.0,0.00011126,2]
[421781552,1778147440000,-500.0,0.00011126,2]
[421781554,1778147440000,-500.0,0.00011126,2]
[421781557,1778147440000,-500.0,0.00011126,2]
[421781541,1778147440000,-500.0,0.00011126,2]
[421781561,1778147440000,-500.0,0.00011126,2]
[421781559,1778147440000,-500.0,0.00011126,2]
[421781562,1778147440000,-553.87877266,0.00011126,2]
[421781558,1778147440000,-500.0,0.00011126,2]
[421781556,1778147440000,-500.0,0.00011126,2]
[421781560,1778147440000,-500.0,0.00011126,2]
[421781568,1778147440000,-576.09231449,0.00011126,2]
[421781566,1778147440000,-500.0,0.00011126,2]
[421781567,1778147440000,-500.0,0.00011126,2]
[421781569,1778147440000,-554.86,0.00011126,2]
[421781571,1778147440000,-250.5971527,0.00011126,2]
[421781570,1778147440000,-499.0,0.00011126,2]
[421781506,1778147440000,-621.78829552,0.0001108,2]
[421781555,1778147440000,-500.42702581,0.00011126,2]
[421781551,1778147440000,-500.0,0.00011126,2]
[421781553,1778147440000,-500.0,0.00011126,2]
[421781549,1778147440000,-500.0,0.00011126,2]
[421781512,1778147440000,-333.27025059,0.00011125,2]
[421781511,1778147440000,-155.0,0.00011125,2]
[421781513,1778147440000,-500.0,0.00011125,2]
[421781515,1778147440000,-500.0,0.00011125,2]
[421781516,1778147440000,-500.0,0.00011125,2]
[421781544,1778147440000,-500.0,0.00011126,2]
[421781519,1778147440000,-500.0,0.00011125,2]
[421781518,1778147440000,-500.0,0.00011125,2]
[421781517,1778147440000,-500.0,0.00011125,2]
[421781520,1778147440000,-500.0,0.00011125,2]
[421781532,1778147440000,-500.0,0.00011125,2]
[421781531,1778147440000,-500.0,0.00011125,2]
[421781522,1778147440000,-500.0,0.00011125,2]
[421781534,1778147440000,-500.0,0.00011125,2]
[421781514,1778147440000,-500.0,0.00011125,2]
[421781533,1778147440000,-500.0,0.00011125,2]
[421781525,1778147440000,-160.97376855,0.00011125,2]
[421781542,1778147440000,-500.0,0.00011126,2]
[421781540,1778147440000,-500.0,0.00011126,2]
[421781537,1778147440000,-500.0,0.00011126,2]
[421781529,1778147440000,-362.68163798,0.00011125,2]
[421781526,1778147440000,-500.0,0.00011125,2]
[421781539,1778147440000,-604.13,0.00011126,2]
[421781536,1778147440000,-550.0,0.00011125,2]
[421781535,1778147440000,-500.0,0.00011125,2]
[421781524,1778147440000,-500.0,0.00011125,2]
[421781528,1778147440000,-500.0,0.00011125,2]
[421781527,1778147440000,-500.0,0.00011125,2]
[421781599,1778147441000,-500.0,0.00011126,2]
[421781583,1778147441000,-500.0,0.00011126,2]
[421781591,1778147441000,-50.51385563,0.00011126,2]
[421781595,1778147441000,-105.06052518,0.00011126,2]
[421781587,1778147441000,-484.12276563,0.00011126,2]
[421781584,1778147441000,-15.87723437,0.00011126,2]
[421781586,1778147441000,-500.0,0.00010958,2]
[421781580,1778147441000,-500.0,0.00011126,2]
[421781579,1778147441000,-555.54,0.00011126,2]
[421781574,1778147441000,-352.3628473,0.00011126,2]
[421781581,1778147441000,-25.15019815,0.00011126,2]
[421781582,1778147441000,-474.84980185,0.00011126,2]
[421781578,1778147441000,-500.0,0.00011126,2]
[421781575,1778147441000,-595.52,0.00011126,2]
[421781577,1778147441000,-500.0,0.00011126,2]
[421781590,1778147441000,-449.48614437,0.00011126,2]
[421781576,1778147441000,-500.0,0.00011126,2]
[421781593,1778147441000,-500.0,0.00011126,2]
[421781611,1778147441000,-125.94111963,0.00011126,2]
[421781596,1778147441000,-394.93947482,0.00011126,2]
[421781589,1778147441000,-309.47856746,0.00011126,2]
[421781610,1778147441000,-299.82268912,0.00011126,2]
[421781612,1778147441000,-341.44406342,0.00011126,2]
[421781607,1778147441000,-500.0,0.00011126,2]
[421781606,1778147441000,-500.0,0.00011126,2]
[421781609,1778147441000,-502.91896782,0.00011126,2]
[421781608,1778147441000,-500.0,0.00011126,2]
[421781605,1778147441000,-500.0,0.00011126,2]
[421781604,1778147441000,-500.0,0.00011126,2]
[421781602,1778147441000,-500.0,0.00011126,2]
[421781600,1778147441000,-621.36,0.00011126,2]